fUST/lending_fUST_20250607
["ID","MTS","AMOUNT","RATE_DAILY","PERIOD"]
[364765330,1749233233632,-500.0,0.00019499,2]
[364765331,1749233233656,-500.0,0.00019499,2]
[364765332,1749233233679,-500.0,0.00019499,2]
[364765333,1749233233702,-500.0,0.00019499,2]
[364765334,1749233233724,-500.0,0.00019499,2]
[364765335,1749233233752,-323.51249411,0.00019499,2]
[364765336,1749233252091,-176.48750589,0.00019499,2]
[364765337,1749233252114,-500.0,0.00019499,2]
[364765338,1749233252138,-500.0,0.00019499,2]
[364765339,1749233252164,-500.0,0.00019499,2]
[364765340,1749233252187,-500.0,0.00019499,2]
[364765341,1749233252212,-500.0,0.00019499,2]
[364765342,1749233252235,-500.0,0.00019499,2]
[364765343,1749233252258,-500.0,0.00019499,2]
[364765344,1749233252280,-500.0,0.00019499,2]
[364765345,1749233252302,-500.0,0.00019499,2]
[364765346,1749233252326,-500.0,0.00019499,2]
[364765347,1749233252348,-500.0,0.00019499,2]
[364765348,1749233252370,-500.0,0.00019499,2]
[364765349,1749233252393,-500.0,0.00019499,2]
[364765350,1749233252416,-444.55804749,0.00019499,2]
[364765351,1749233252439,-500.0,0.00019499,2]
[364765352,1749233252462,-500.0,0.00019499,2]
[364765353,1749233252484,-500.0,0.00019499,2]
[364765354,1749233252508,-500.0,0.00019499,2]
[364765355,1749233252532,-500.0,0.00019499,2]
[364765356,1749233252558,-500.0,0.00019499,2]
[364765357,1749233252581,-500.0,0.00019499,2]
[364765358,1749233252603,-500.0,0.00019499,2]
[364765359,1749233252625,-500.0,0.00019499,2]
[364765360,1749233252648,-500.0,0.00019499,2]
[364765361,1749233252670,-500.0,0.00019499,2]
[364765363,1749233252693,-500.0,0.00019499,2]
[364765364,1749233252716,-500.0,0.00019499,2]
[364765365,1749233252738,-500.0,0.00019499,2]
[364765366,1749233252762,-500.0,0.00019499,2]
[364765367,1749233252784,-500.0,0.00019499,2]
[364765368,1749233252807,-500.0,0.00019499,2]
[364765369,1749233252832,-500.0,0.00019499,2]
[364765370,1749233252855,-500.0,0.00019499,2]
[364765371,1749233252877,-500.0,0.00019499,2]
[364765372,1749233252899,-500.0,0.00019499,2]
[364765373,1749233252922,-500.0,0.00019499,2]
[364765374,1749233252945,-500.0,0.00019499,2]
[364765375,1749233252968,-500.0,0.00019499,2]
[364765376,1749233252990,-500.0,0.00019499,2]
[364765377,1749233253014,-500.0,0.00019499,2]
[364765378,1749233253042,-500.0,0.00019499,2]
[364765379,1749233253065,-500.0,0.00019499,2]
[364765380,1749233253088,-500.0,0.00019499,2]
[364765381,1749233253111,-500.0,0.00019499,2]
[364765382,1749233253134,-500.0,0.00019499,2]
[364765383,1749233253158,-500.0,0.00019499,2]
[364765384,1749233253182,-500.0,0.00019499,2]
[364765385,1749233253205,-500.0,0.00019499,2]
[364765386,1749233253229,-500.0,0.00019499,2]
[364765387,1749233253252,-500.0,0.00019499,2]
[364765388,1749233253280,-500.0,0.00019499,2]
[364765389,1749233253304,-500.0,0.00019499,2]
[364765390,1749233253329,-500.0,0.00019499,2]
[364765391,1749233253352,-201.02242745,0.00019499,2]
[364765392,1749233253376,-500.0,0.00019499,2]
[364765393,1749233253400,-500.0,0.00019499,2]
[364765394,1749233253424,-500.0,0.00019499,2]
[364765395,1749233253447,-500.0,0.00019499,2]
[364765396,1749233253471,-500.0,0.00019499,2]
[364765397,1749233253495,-500.0,0.00019499,2]
[364765398,1749233253518,-500.0,0.00019499,2]
[364765399,1749233253544,-155.81877582,0.00019499,2]
[364765442,1749233432052,-1200.0,0.00019498,2]
[364765443,1749233432063,-9008.85418613,0.00019499,5]
[364765444,1749233432074,-300.0,0.00019499,2]
[364765445,1749233432084,-300.0,0.00019499,2]
[364765446,1749233432095,-300.0,0.00019499,2]
[364765447,1749233432106,-4353.19935599,0.000195,2]
[364765448,1749233432117,-201.5500455,0.00019542,2]
[364765449,1749233432128,-207.4,0.00019736,2]
[364765450,1749233432139,-162.8601736,0.00019845,2]
[364765451,1749233432150,-430.0,0.00019886,2]
[364765452,1749233432160,-440.0,0.00019886,2]
[364765454,1749233432171,-440.0,0.00019886,2]
[364765455,1749233432180,-440.0,0.00019886,2]
[364765456,1749233432191,-150.0,0.00019887,2]
[364765457,1749233432202,-1000.64776702,0.00019997,2]
[364765458,1749233432212,-440.0,0.00019998,2]
[364765459,1749233432223,-440.0,0.00019998,2]
[364765460,1749233432233,-440.0,0.00019999,2]
[364765461,1749233432243,-185.31676408,0.00019999,2]
[364765462,1749233432437,-430.0,0.00019999,2]
[364765463,1749233432454,-540.89843636,0.00019999,2]
[364765464,1749233432464,-562.48,0.00019999,2]
[364765465,1749233432474,-440.0,0.00019999,2]
[364765466,1749233432484,-440.0,0.00019999,2]
[364765467,1749233432493,-500.0,0.00019999,2]
[364765468,1749233432503,-500.0,0.00019999,2]
[364765469,1749233432512,-500.0,0.00019999,2]
[364765470,1749233432522,-500.0,0.00019999,2]
[364765471,1749233432531,-500.0,0.00019999,2]
[364765472,1749233432541,-500.0,0.00019999,2]
[364765473,1749233432551,-174.32114925,0.00019999,2]
[364765474,1749233432560,-500.0,0.00019999,2]
[364765475,1749233432570,-500.0,0.00019999,2]
[364765476,1749233432580,-500.0,0.00019999,2]
[364765477,1749233432589,-500.0,0.00019999,2]
[364765478,1749233432599,-500.0,0.00019999,2]
[364765479,1749233432608,-500.0,0.00019999,2]
[364765480,1749233432617,-500.0,0.00019999,2]
[364765481,1749233432627,-500.0,0.00019999,2]
[364765482,1749233432636,-500.0,0.00019999,2]
[364765483,1749233432646,-500.0,0.00019999,2]
[364765484,1749233432655,-500.0,0.00019999,2]
[364765485,1749233432663,-397.75718241,0.0002,2]
[364765486,1749233432673,-397.75718234,0.00020072,2]
[364765488,1749233432682,-440.0,0.0002016,2]
[364765490,1749233432692,-440.0,0.0002016,2]
[364765492,1749233432701,-440.0,0.0002016,2]
[364765494,1749233432711,-99.2847759,0.00020187,2]
[364766102,1749233445996,-509.6161884,0.00019484,2]
[364766108,1749233471646,466.55441267,0.000189,2]
[364766109,1749233568055,13903.31286241,0.00018,2]
[364766110,1749233568080,9495.49538745,0.00018,2]
[364766111,1749233568103,2700.96089614,0.00018,2]
[364766113,1749233625330,194.84232067,0.00016,2]
[364766114,1749233773018,434.74598579,0.000189,2]
[364766116,1749234074311,289.83065719,0.000189,2]
[364766138,1749234342606,394.964557,0.00013699,2]
[364766140,1749234375599,193.22043813,0.000189,2]
[364766142,1749234434754,230.72141854,0.00018899,2]
[364766143,1749234446114,-235.012749,0.00019178,2]
[364766144,1749234446136,-5000.0,0.00019484,2]
[364766145,1749234446158,-992.25223635,0.00019666,2]
[364766146,1749234452123,-307.74776365,0.00019666,2]
[364766147,1749234452147,-150.0,0.00019845,2]
[364766148,1749234452170,-154.10278572,0.00019897,2]
[364766149,1749234452195,-1200.0,0.00019972,2]
[364766150,1749234452217,-300.0,0.00019984,2]
[364766151,1749234452239,-300.0,0.00019984,2]
[364766152,1749234452262,-300.0,0.00019985,2]
[364766153,1749234452287,-300.0,0.00019985,2]
[364766154,1749234452326,-300.0,0.00019985,2]
[364766155,1749234452358,-207.4,0.00019986,2]
[364766156,1749234452379,-151.0,0.00019986,2]
[364766157,1749234452402,-236.72530795,0.00019986,2]
[364766183,1749234486535,635.923482,0.00018997,2]
[364766184,1749234501055,157.80180675,0.000187,2]
[364766190,1749234512795,13785.64223779,0.00017,2]
[364766191,1749234512816,19018.6538,0.00017,2]
[364766192,1749234512837,19018.6538,0.00017,2]
[364766193,1749234512857,7406.42842006,0.00017,2]
[364766194,1749234515643,728.47350963,0.00018,2]
[364766195,1749234520875,466.81099527,0.00014,30]
[364766238,1749234632125,-200.97690194,0.00019078,2]
[364766240,1749234632135,-62.10226993,0.00019566,2]
[364766246,1749234632181,-133.00439548,0.00019566,2]
[364766248,1749234632191,-591.43944302,0.00019666,2]
[364766254,1749234632239,-608.56055698,0.00019666,2]
[364766256,1749234632249,-155.91437343,0.00019896,2]
[364766258,1749234632261,-225.6793886,0.0001997,2]
[364766260,1749234632270,-1618.19095043,0.00019986,2]
[364766275,1749234632406,-33.08374162,0.00019986,2]
[364766277,1749234632416,-638.53270119,0.00019986,2]
[364766278,1749234632426,-207.4,0.00019986,2]
[364766279,1749234632435,-757.9,0.00019988,3]
[364766281,1749234632444,-300.0,0.00019994,2]
[364766283,1749234632454,-300.0,0.00019994,2]
[364766285,1749234632464,-1200.0,0.00019994,2]
[364766288,1749234632474,-500.0,0.00019994,2]
[364766291,1749234632484,-500.0,0.00019994,2]
[364766294,1749234632494,-500.0,0.00019994,2]
[364766297,1749234632504,-500.0,0.00019994,2]
[364766300,1749234632513,-500.0,0.00019994,2]
[364766303,1749234632523,-500.0,0.00019994,2]
[364766306,1749234632533,-451.15762798,0.00019994,2]
[364766309,1749234632543,-247.5882973,0.00019994,2]
[364766312,1749234632552,-575.40551056,0.00019994,2]
[364766315,1749234632562,-430.0,0.00019995,2]
[364766318,1749234632572,-440.0,0.00019995,2]
[364766321,1749234632581,-440.0,0.00019995,2]
[364766323,1749234632592,-430.0,0.00019995,2]
[364766325,1749234632601,-430.0,0.00019995,2]
[364766327,1749234632610,-403.08515721,0.00019995,2]
[364766329,1749234632620,-440.0,0.00019995,2]
[364766331,1749234632629,-430.0,0.00019995,2]
[364766333,1749234632639,-440.0,0.00019995,2]
[364766335,1749234632648,-440.0,0.00019995,2]
[364766336,1749234632658,-430.0,0.00019995,2]
[364766337,1749234632667,-440.0,0.00019995,2]
[364766338,1749234632677,-440.0,0.00019995,2]
[364766339,1749234632686,-465.93,0.00019995,2]
[364766340,1749234632696,-401.40925112,0.00019995,2]
[364766341,1749234632705,-440.0,0.00019995,2]
[364766342,1749234632714,-450.0,0.00019995,2]
[364766343,1749234632724,-431.25416698,0.00019995,2]
[364766344,1749234632733,-440.0,0.00019995,2]
[364766345,1749234632742,-440.0,0.00019995,2]
[364766346,1749234632751,-440.0,0.00019995,2]
[364766347,1749234632761,-430.0,0.00019995,2]
[364766348,1749234632770,-440.0,0.00019996,2]
[364766349,1749234632779,-816.74,0.00019996,2]
[364766350,1749234632789,-500.0,0.00019996,2]
[364766351,1749234632798,-351.34022972,0.00019996,2]
[364766352,1749234632807,-440.0,0.00019996,2]
[364766353,1749234632818,-337.27793919,0.00019996,2]
[364766354,1749234632828,-440.0,0.00019996,2]
[364766355,1749234632838,-430.0,0.00019996,2]
[364766356,1749234632848,-440.0,0.00019996,2]
[364766357,1749234632858,-440.0,0.00019996,2]
[364766358,1749234632867,-440.0,0.00019996,2]
[364766359,1749234632876,-440.0,0.00019996,2]
[364766360,1749234632886,-440.0,0.00019996,2]
[364766361,1749234632895,-440.0,0.00019996,2]
[364766362,1749234632905,-430.0,0.00019996,2]
[364766363,1749234632914,-440.0,0.00019996,2]
[364766364,1749234633048,-440.0,0.00019996,2]
[364766365,1749234633058,-400.0,0.00019996,2]
[364766366,1749234633067,-440.0,0.00019996,2]
[364766367,1749234633077,-430.0,0.00019996,2]
[364766368,1749234633086,-440.0,0.00019996,2]
[364766369,1749234633097,-430.0,0.00019996,2]
[364766370,1749234633107,-430.0,0.00019996,2]
[364766371,1749234633116,-430.0,0.00019996,2]
[364766372,1749234633125,-440.0,0.00019996,2]
[364766373,1749234633135,-430.0,0.00019996,2]
[364766374,1749234633144,-438.86606368,0.00019996,2]
[364766375,1749234633153,-440.0,0.00019996,2]
[364766376,1749234633162,-440.0,0.00019996,2]
[364766377,1749234633172,-440.0,0.00019996,2]
[364766378,1749234633181,-440.0,0.00019996,2]
[364766379,1749234633190,-430.0,0.00019996,2]
[364766380,1749234633199,-440.0,0.00019996,2]
[364766381,1749234633208,-440.0,0.00019996,2]
[364766382,1749234633217,-440.0,0.00019996,2]
[364766383,1749234633227,-500.0,0.00019996,2]
[364766384,1749234633236,-440.0,0.00019996,2]
[364766385,1749234633246,-440.0,0.00019996,2]
[364766386,1749234633256,-440.0,0.00019996,2]
[364766387,1749234633267,-430.0,0.00019996,2]
[364766388,1749234633276,-460.91737686,0.00019997,2]
[364766389,1749234633286,-420.0,0.00019997,2]
[364766390,1749234633295,-440.0,0.00019997,2]
[364766391,1749234633305,-558.48076791,0.00019997,2]
[364766392,1749234633314,-440.0,0.00019997,2]
[364766393,1749234633323,-440.0,0.00019997,2]
[364766394,1749234633333,-440.0,0.00019997,2]
[364766395,1749234633342,-440.0,0.00019997,2]
[364766396,1749234633352,-440.0,0.00019997,2]
[364766397,1749234633361,-440.0,0.00019997,2]
[364766398,1749234633371,-440.0,0.00019997,2]
[364766399,1749234633382,-440.0,0.00019997,2]
[364766400,1749234633392,-440.0,0.00019997,2]
[364766401,1749234633402,-507.47,0.00019997,2]
[364766402,1749234633411,-500.0,0.00019997,2]
[364766403,1749234633421,-500.0,0.00019997,2]
[364766404,1749234633430,-500.0,0.00019997,2]
[364766405,1749234633439,-538.0937288,0.00019997,2]
[364766406,1749234633449,-440.0,0.00019997,2]
[364766407,1749234633459,-440.0,0.00019997,2]
[364766408,1749234633469,-441.94390668,0.00019997,2]
[364766409,1749234633479,-440.0,0.00019997,2]
[364766410,1749234633489,-440.0,0.00019997,2]
[364766411,1749234633499,-440.0,0.00019997,2]
[364766412,1749234633509,-440.0,0.00019997,2]
[364766413,1749234633518,-325.127361,0.00019997,2]
[364766414,1749234633528,-407.3406,0.00019997,2]
[364766415,1749234633538,-440.0,0.00019997,2]
[364766416,1749234633548,-440.0,0.00019997,2]
[364766417,1749234633557,-440.0,0.00019997,2]
[364766418,1749234633567,-440.0,0.00019997,2]
[364766419,1749234633577,-400.0,0.00019997,2]
[364766420,1749234633586,-403.62305558,0.00019997,2]
[364766421,1749234633597,-440.0,0.00019997,2]
[364766422,1749234633607,-440.0,0.00019997,2]
[364766423,1749234633617,-440.0,0.00019997,2]
[364766424,1749234633627,-402.52947357,0.00019997,2]
[364766425,1749234633638,-440.0,0.00019997,2]
[364766426,1749234633648,-440.0,0.00019997,2]
[364766427,1749234633658,-440.0,0.00019997,2]
[364766428,1749234633667,-495.98,0.00019997,2]
[364766429,1749234633677,-440.0,0.00019997,2]
[364766430,1749234633687,-440.0,0.00019997,2]
[364766431,1749234633697,-400.0,0.00019997,2]
[364766432,1749234633706,-297.89612576,0.00019997,2]
[364766433,1749234633716,-430.0,0.00019997,2]
[364766434,1749234633726,-400.44101049,0.00019997,2]
[364766435,1749234633735,-507.88493114,0.00019997,2]
[364766436,1749234633745,-440.0,0.00019997,2]
[364766437,1749234633754,-430.0,0.00019997,2]
[364766438,1749234633764,-440.0,0.00019997,2]
[364766439,1749234633774,-440.0,0.00019997,2]
[364766440,1749234633784,-440.0,0.00019997,2]
[364766441,1749234633794,-440.0,0.00019997,2]
[364766442,1749234633804,-440.0,0.00019997,2]
[364766443,1749234633815,-440.0,0.00019997,2]
[364766444,1749234633824,-430.0,0.00019997,2]
[364766445,1749234633834,-440.0,0.00019997,2]
[364766446,1749234633845,-440.0,0.00019997,2]
[364766447,1749234633855,-440.0,0.00019997,2]
[364766448,1749234633866,-233.04985623,0.00019997,2]
[364766449,1749234633876,-440.0,0.00019997,2]
[364766450,1749234633886,-440.0,0.00019997,2]
[364766451,1749234633897,-406.69462422,0.00019997,2]
[364766452,1749234633907,-440.0,0.00019997,2]
[364766453,1749234633917,-430.0,0.00019997,2]
[364766454,1749234633927,-440.0,0.00019997,2]
[364766455,1749234633937,-440.0,0.00019997,2]
[364766456,1749234633947,-440.0,0.00019997,2]
[364766457,1749234633956,-440.0,0.00019997,2]
[364766458,1749234633966,-400.0,0.00019997,2]
[364766459,1749234633976,-440.0,0.00019997,2]
[364766460,1749234633986,-430.0,0.00019997,2]
[364766461,1749234633995,-440.0,0.00019997,2]
[364766462,1749234634004,-440.0,0.00019997,2]
[364766463,1749234634014,-440.0,0.00019997,2]
[364766464,1749234634024,-430.0,0.00019997,2]
[364766465,1749234634034,-440.0,0.00019997,2]
[364766466,1749234634043,-408.09044017,0.00019997,2]
[364766467,1749234634052,-380.96987757,0.00019997,2]
[364766468,1749234634062,-440.0,0.00019997,2]
[364766469,1749234634072,-440.0,0.00019997,2]
[364766470,1749234634081,-400.0,0.00019997,2]
[364766471,1749234634092,-232.33200696,0.00019997,2]
[364766472,1749234634102,-440.0,0.00019997,2]
[364766473,1749234634111,-574.68059444,0.00019997,2]
[364766474,1749234634121,-440.0,0.00019997,2]
[364766475,1749234634131,-440.0,0.00019997,2]
[364766476,1749234634141,-440.0,0.00019997,2]
[364766477,1749234634151,-286.60981154,0.00019997,2]
[364766478,1749234634165,-142.42437068,0.00019997,2]
[364766479,1749234634175,-440.0,0.00019997,2]
[364766480,1749234634184,-440.0,0.00019997,2]
[364766481,1749234634193,-400.0,0.00019997,2]
[364766482,1749234634203,-440.0,0.00019997,2]
[364766483,1749234634212,-440.0,0.00019997,2]
[364766484,1749234634221,-440.0,0.00019997,2]
[364766485,1749234634231,-440.0,0.00019997,2]
[364766486,1749234634240,-440.0,0.00019997,2]
[364766487,1749234634250,-440.0,0.00019997,2]
[364766488,1749234634262,-440.0,0.00019997,2]
[364766489,1749234634271,-430.0,0.00019997,2]
[364766490,1749234634281,-440.0,0.00019997,2]
[364766491,1749234634290,-440.0,0.00019997,2]
[364766492,1749234634301,-500.0,0.00019997,2]
[364766493,1749234634310,-440.0,0.00019997,2]
[364766494,1749234634320,-440.0,0.00019997,2]
[364766495,1749234634330,-440.0,0.00019997,2]
[364766496,1749234634341,-440.0,0.00019997,2]
[364766497,1749234634351,-594.04,0.00019997,2]
[364766498,1749234634361,-440.0,0.00019997,2]
[364766499,1749234634371,-440.0,0.00019997,2]
[364766500,1749234634380,-440.0,0.00019997,2]
[364766501,1749234634389,-500.0,0.00019997,2]
[364766502,1749234634399,-500.0,0.00019997,2]
[364766503,1749234634409,-500.0,0.00019997,2]
[364766504,1749234634419,-500.0,0.00019997,2]
[364766505,1749234634429,-440.0,0.00019997,2]
[364766506,1749234634439,-440.0,0.00019997,2]
[364766507,1749234634448,-440.0,0.00019997,2]
[364766508,1749234634457,-170.51195781,0.00019998,2]
[364766509,1749234634467,-440.0,0.00019998,2]
[364766510,1749234634476,-440.09053989,0.00019998,2]
[364766511,1749234634486,-390.0,0.00019998,2]
[364766512,1749234634495,-449.30003978,0.00019998,2]
[364766513,1749234634504,-440.0,0.00019998,2]
[364766514,1749234634514,-443.64799591,0.00019998,2]
[364766515,1749234634524,-440.0,0.00019998,2]
[364766516,1749234634533,-440.0,0.00019998,2]
[364766517,1749234634543,-437.78767133,0.00019998,2]
[364766518,1749234634553,-440.0,0.00019998,2]
[364766519,1749234634562,-440.0,0.00019998,2]
[364766520,1749234634571,-440.0,0.00019998,2]
[364766521,1749234634581,-440.0,0.00019998,2]
[364766522,1749234634591,-556.00428834,0.00019998,2]
[364766523,1749234634602,-440.0,0.00019998,2]
[364766524,1749234634612,-441.02540797,0.00019998,2]
[364766525,1749234634622,-514.22176181,0.00019998,2]
[364766526,1749234634631,-503.3260284,0.00019998,2]
[364766527,1749234634641,-440.0,0.00019998,2]
[364766528,1749234634651,-440.0,0.00019998,2]
[364766529,1749234634660,-517.37955047,0.00019998,2]
[364766530,1749234634670,-445.37745601,0.00019998,2]
[364766531,1749234634679,-440.0,0.00019998,2]
[364766532,1749234634689,-440.0,0.00019998,2]
[364766533,1749234634698,-440.0,0.00019998,2]
[364766534,1749234634708,-440.0,0.00019998,2]
[364766535,1749234634718,-440.0,0.00019998,2]
[364766536,1749234634727,-440.0,0.00019998,2]
[364766537,1749234634736,-459.80013698,0.00019998,2]
[364766538,1749234634745,-450.25561317,0.00019998,2]
[364766539,1749234634755,-450.0,0.00019998,2]
[364766540,1749234634764,-509.46256607,0.00019998,2]
[364766541,1749234634773,-445.52433474,0.00019998,2]
[364766542,1749234634783,-505.24586559,0.00019998,2]
[364766543,1749234634792,-440.0,0.00019998,2]
[364766544,1749234634802,-426.53720449,0.00019998,2]
[364766545,1749234634811,-440.0,0.00019998,2]
[364766546,1749234634820,-440.0,0.00019998,2]
[364766547,1749234634829,-500.89424069,0.00019998,2]
[364766548,1749234634839,-440.0,0.00019998,2]
[364766549,1749234634851,-440.0,0.00019998,2]
[364766550,1749234634860,-440.0,0.00019998,2]
[364766551,1749234634870,-440.0,0.00019998,2]
[364766552,1749234634879,-220.83138837,0.00019998,2]
[364766553,1749234634888,-440.0,0.00019998,2]
[364766554,1749234634897,-509.96422887,0.00019998,2]
[364766555,1749234634906,-505.73193461,0.00019998,2]
[364766556,1749234634916,-400.0,0.00019998,2]
[364766557,1749234634926,-452.79946169,0.00019998,2]
[364766558,1749234634935,-440.0,0.00019998,2]
[364766559,1749234634945,-443.54183881,0.00019998,2]
[364766560,1749234634954,-430.0,0.00019998,2]
[364766561,1749234634963,-430.0,0.00019998,2]
[364766562,1749234634972,-443.46448818,0.00019998,2]
[364766563,1749234634981,-440.0,0.00019998,2]
[364766564,1749234634992,-400.0,0.00019998,2]
[364766565,1749234635002,-440.0,0.00019998,2]
[364766566,1749234635011,-440.0,0.00019998,2]
[364766567,1749234635020,-255.91969351,0.00019998,2]
[364766568,1749234635030,-440.0,0.00019998,2]
[364766569,1749234635039,-224.73162541,0.00019998,2]
[364766570,1749234635048,-440.0,0.00019998,2]
[364766571,1749234635057,-438.5400187,0.00019998,2]
[364766572,1749234635066,-440.0,0.00019998,2]
[364766573,1749234635075,-430.0,0.00019998,2]
[364766574,1749234635085,-440.0,0.00019998,2]
[364766575,1749234635095,-440.0,0.00019998,2]
[364766576,1749234635105,-440.0,0.00019998,2]
[364766577,1749234635115,-440.0,0.00019998,2]
[364766578,1749234635125,-440.0,0.00019998,2]
[364766579,1749234635136,-400.0,0.00019998,2]
[364766580,1749234635145,-440.0,0.00019998,2]
[364766581,1749234635155,-510.0,0.00019998,2]
[364766582,1749234635164,-440.0,0.00019998,2]
[364766583,1749234635173,-440.0,0.00019998,2]
[364766584,1749234635183,-430.0,0.00019998,2]
[364766585,1749234635192,-430.0,0.00019998,2]
[364766586,1749234635202,-440.0,0.00019998,2]
[364766587,1749234635211,-440.0,0.00019998,2]
[364766588,1749234635221,-430.0,0.00019998,2]
[364766589,1749234635231,-440.0,0.00019998,2]
[364766590,1749234635240,-402.56902387,0.00019998,2]
[364766591,1749234635249,-351.89463732,0.00019998,2]
[364766592,1749234635261,-200.92804985,0.00019998,2]
[364766593,1749234635271,-440.0,0.00019998,2]
[364766594,1749234635281,-401.94791511,0.00019998,2]
[364766595,1749234635291,-440.0,0.00019998,2]
[364766596,1749234635301,-440.0,0.00019998,2]
[364766597,1749234635310,-440.0,0.00019998,2]
[364766598,1749234635320,-440.0,0.00019998,2]
[364766599,1749234635330,-400.0,0.00019998,2]
[364766600,1749234635343,-528.04361022,0.00019998,2]
[364766601,1749234635353,-400.0,0.00019998,2]
[364766602,1749234635363,-414.71003041,0.00019998,2]
[364766603,1749234635372,-440.0,0.00019998,2]
[364766604,1749234635382,-440.0,0.00019998,2]
[364766605,1749234635391,-151.0,0.00019998,2]
[364766606,1749234635402,-256.65376871,0.00019998,2]
[364766607,1749234635411,-440.0,0.00019998,2]
[364766608,1749234635421,-440.0,0.00019998,2]
[364766609,1749234635431,-440.0,0.00019998,2]
[364766610,1749234635441,-507.63682359,0.00019998,2]
[364766611,1749234635450,-401.61404697,0.00019998,2]
[364766612,1749234635459,-423.22003313,0.00019998,2]
[364766613,1749234635470,-440.0,0.00019998,2]
[364766614,1749234635479,-189.34039913,0.00019998,2]
[364766615,1749234635489,-440.0,0.00019998,2]
[364766616,1749234635499,-440.0,0.00019998,2]
[364766617,1749234635509,-370.0,0.00019998,2]
[364766618,1749234635519,-430.0,0.00019998,2]
[364766619,1749234635528,-453.22447969,0.00019998,2]
[364766620,1749234635538,-452.77394375,0.00019998,2]
[364766621,1749234635547,-440.0,0.00019998,2]
[364766622,1749234635557,-335.95932143,0.00019998,2]
[364766623,1749234635567,-440.0,0.00019998,2]
[364766624,1749234635577,-197.54617617,0.00019998,2]
[364766625,1749234635586,-440.0,0.00019998,2]
[364766626,1749234635597,-440.0,0.00019998,2]
[364766627,1749234635607,-440.0,0.00019998,2]
[364766628,1749234635616,-452.46780618,0.00019998,2]
[364766629,1749234635625,-440.0,0.00019998,2]
[364766630,1749234635635,-400.0,0.00019998,2]
[364766631,1749234635644,-440.0,0.00019998,2]
[364766632,1749234635654,-440.0,0.00019998,2]
[364766633,1749234635663,-455.75747863,0.00019998,2]
[364766634,1749234635672,-436.08697673,0.00019998,2]
[364766635,1749234635682,-430.0,0.00019998,2]
[364766636,1749234635692,-430.0,0.00019998,2]
[364766637,1749234635701,-480.0,0.00019998,2]
[364766638,1749234635711,-430.0,0.00019998,2]
[364766639,1749234635720,-430.0,0.00019998,2]
[364766640,1749234635729,-440.0,0.00019998,2]
[364766641,1749234635739,-440.0,0.00019998,2]
[364766642,1749234635749,-430.0,0.00019998,2]
[364766643,1749234635758,-440.0,0.00019998,2]
[364766644,1749234635767,-522.02005557,0.00019998,2]
[364766645,1749234635777,-225.8679098,0.00019998,2]
[364766646,1749234635787,-430.0,0.00019998,2]
[364766647,1749234635796,-440.0,0.00019998,2]
[364766648,1749234635805,-430.0,0.00019998,2]
[364766649,1749234635815,-440.0,0.00019998,2]
[364766650,1749234635824,-440.0,0.00019998,2]